Cogmind - Beta 11 @@@ ROGUE MODE // 2022.04.18 @ 23:11:35 Player: Decinym Result: Destroyed self with Grenade Launcher Performance ------------- Evolutions (0) 0 Regions Visited (4) 800 Robots Destroyed (39) 195 Value Destroyed (715) 715 Prototype IDs (0) 0 Alien Tech Used (0) 0 Bonus (0) 0 TOTAL SCORE: 1710 Bonus ------- None Cogmind --------- Core Integrity 0/250 Matter 190/300 Energy 265/265 System Corruption 2% Temperature Cool (56) Movement Treading (240) Ox1 Location -9/Mines Parts ------- > --- POWER (1) -------- Improved Ion Engine > --- PROPULSION (2) --- Light Treads Light Treads > --- UTILITY (2) ------ High-capacity Storage Unit Reactive Plating > --- WEAPON (2) ------- Heavy Particle Cannon Grenade Launcher > --- INVENTORY (20) --- Ion Engine Light Ion Engine Light Nuclear Core Aluminum Leg Aluminum Leg Aluminum Leg Wheel Compact Wheel Large Storage Unit Trap Scanner EM Pulse Gun Small Laser Particle Gun Grenade Launcher Plasma Cutter Heavy Explosive Trap Heavy Explosive Trap Peak State ------------ > --- POWER ------------ Light Deuterium Engine > --- PROPULSION ------- Light Treads Light Treads > --- UTILITY ---------- Large Storage Unit Reactive Plating > --- WEAPON ----------- Particle Gun Heavy Particle Cannon > --- INVENTORY -------- Ion Engine Light Ion Engine Light Nuclear Core Aluminum Leg Aluminum Leg Aluminum Leg Aluminum Leg Aluminum Leg Wheel Compact Wheel EM Pulse Gun Small Laser Grenade Launcher Grenade Launcher [Rating: 15] Favorites ----------- Power Light Deuterium Engine Engine Light Deuterium Engine Propulsion Light Treads Treads Light Treads Leg Aluminum Leg Utility Large Storage Unit Storage Large Storage Unit Processor Targeting Computer Protection Reactive Plating Weapon Heavy Particle Cannon Energy Gun Particle Gun Energy Cannon Heavy Particle Cannon Ballistic Gun Light Assault Rifle Launcher Grenade Launcher Build | -11 -10 -10 -10 -9 ------- Run | Scr Mat Min Exi Min Slots Evolved . | . . . . . Power . | . . . . . Propulsion . | . . . . . Utility . | . . . . . Weapon . | . . . . . Parts Attached 26 | . 16 8 1 1 Power 5 | . 3 1 . 1 Engine 5 | . 3 1 . 1 Core . | . . . . . Reactor . | . . . . . Propulsion 8 | . 6 2 . . Treads 2 | . . 2 . . Leg 6 | . 6 . . . Wheel . | . . . . . Hover . | . . . . . Flight . | . . . . . Utility 5 | . 3 1 1 . Device . | . . . . . Storage 3 | . 2 . 1 . Processor 1 | . 1 . . . Hackware . | . . . . . Protection 1 | . . 1 . . Artifact . | . . . . . Weapon 8 | . 4 4 . . Energy Gun 3 | . 2 1 . . Energy Cannon 2 | . . 2 . . Ballistic Gun 2 | . 2 . . . Ballistic Cannon . | . . . . . Launcher 1 | . . 1 . . Special Weapon . | . . . . . Impact Weapon . | . . . . . Slashing Weapon . | . . . . . Piercing Weapon . | . . . . . Special Melee Weapon . | . . . . . Unidentified Prototypes . | . . . . . Parts Lost 3 | . 2 1 . . Power . | . . . . . Propulsion . | . . . . . Utility 1 | . . 1 . . Weapon 2 | . 2 . . . Highest Loss Streak 1 | . 1 1 . . To Critical Strikes . | . . . . . Average Slot Usage (%) 98 | . 95 98 100 100 Engine 14 | . 14 14 14 14 Treads 20 | . . 25 28 28 Leg 7 | . 28 2 . . Storage 14 | . 14 14 14 14 Processor 2 | . 9 1 . . Protection 9 | . . 11 14 14 Energy Gun 4 | . 6 7 . . Energy Cannon 9 | . . 11 14 14 Ballistic Gun 6 | . 20 2 . . Launcher 7 | . . 6 14 14 Naked Turns . | . . . . . Heaviest Build 66 | 13 27 44 64 66 Greatest Support 40 | 20 20 40 40 40 Greatest Overweight (x) 1 | . 1 1 1 1 Average Overweight (x) . | . . . 1 1 Largest Inventory Capacity 20 | . 15 15 20 20 Average Capacity 15 | . 13 15 15 20 Most Carried 17 | . 15 15 16 17 Average Carried 13 | . 9 14 15 16 Final Capacity 20 | 8 15 15 20 20 Final Carried 17 | 6 15 15 16 17 Class Distribution -------------------- 75% | Mutant 24% | Scavenger-Mutant Dominant Class ---------------- Scavenger-Mutant | -10/Materials Mutant | -10/Mines Mutant | -10/Exiles Mutant | -9/Mines Resources | -11 -10 -10 -10 -9 ----------- Run | Scr Mat Min Exi Min Matter Collected 586 | 159 263 121 . 43 Remotely . | . . . . . Salvage Created 819 | . 572 218 . 29 Parts 73 | . 48 18 . 7 Haulers Intercepted . | . . . . . Recyclers Shooed . | . . . . . Parts Field Recycled . | . . . . . Retrieved Matter . | . . . . . Parts Self-Destructed . | . . . . . Prevented . | . . . . . Kills | -11 -10 -10 -10 -9 ------- Run | Scr Mat Min Exi Min Combat Hostiles Destroyed 35 | . 20 11 . 4 Guns 29 | . 20 9 . . AOE 6 | . . 2 . 4 Classes Destroyed 4 | . 2 2 . . Worker 2 | . . 1 . 1 Tunneler 2 | . . 1 . 1 Swarmer 21 | . 9 9 . 3 Grunt 14 | . 11 2 . 1 Best Kill Streak 9 | . 9 3 . 5 Combat Bots Only 9 | . 9 3 . 3 Max Kills in Single Turn 2 | . 1 2 . 2 Gunslinging 1 | . . 1 . . Exploded 1 | . . 1 . 1 Melee . | . . . . . Uniques/NPCs Destroyed . | . . . . . Combat | -11 -10 -10 -10 -9 -------- Run | Scr Mat Min Exi Min Damage Taken 1252 | . 640 452 . 160 Core 259 | . 116 96 . 47 Absorbed by Shields . | . . . . . Core Remaining (%) 100 | 100 . . . . Volleys Fired 87 | . 52 26 . 9 Largest 2 | . 2 2 . 1 Hottest 140 | . 60 140 . 30 Shots Fired 155 | . 95 50 1 9 Gun 136 | . 95 41 . . Cannon 7 | . . 7 . . Launcher 12 | . . 2 1 9 Special . | . . . . . Kinetic 89 | . 72 17 . . Thermal 43 | . 12 31 . . Explosive 12 | . . 2 1 9 Electromagnetic 11 | . 11 . . . Robot Hit Streak 12 | . 12 11 . 3 Robot Miss Streak 5 | . 5 3 . 1 Penetration Max . | . . . . . Secondary Targets 6 | . 4 2 . . Max Gunslinging Chain 1 | . 1 1 . . Shots Hit Robots 97 | . 62 30 . 5 Core Hits 66 | . 36 18 . 12 Critical Kills 1 | . 1 . . . Critical Parts Destroyed . | . . . . . Critical Strikes 1 | . 1 . . . Destroy 1 | . 1 . . . Melee Attacks . | . . . . . Impact . | . . . . . Slashing . | . . . . . Piercing . | . . . . . Sneak Attacks . | . . . . . Combat Hostiles . | . . . . . Follow-up Attacks . | . . . . . Damage Inflicted 1605 | . 544 504 . 557 Guns 812 | . 544 268 . . Cannons 100 | . . 100 . . Explosions 693 | . . 136 . 557 Melee . | . . . . . Ramming . | . . . . . Kinetic 482 | . 415 67 . . Thermal 347 | . 46 301 . . Explosive 693 | . . 136 . 557 Electromagnetic 83 | . 83 . . . Impact . | . . . . . Slashing . | . . . . . Piercing . | . . . . . Highest Corruption 2 | . 2 2 2 2 Average Corruption 2 | . 2 2 2 2 Corruption Purged . | . . . . . Corruption Blocked . | . . . . . Effects 34 | . 1 18 7 8 Message Errors 10 | . . 5 2 3 Matter Fused 6 | . . 5 . 1 Heat Flow Errors 4 | . . 3 . 1 Energy Discharges 7 | . 1 3 3 . Data Loss (minor) 1 | . . . 1 . Data Loss (major) 2 | . . . . 2 Misfires 1 | . . . 1 . Alerts 3 | . . 2 . 1 Overload Shots . | . . . . . Overflow Damage 16 | . . 16 . . Projectiles . | . . . . . Explosions 16 | . . 16 . . Melee . | . . . . . Knockbacks . | . . . . . Impact . | . . . . . Kinetic . | . . . . . Secondary . | . . . . . Self-Inflicted Damage 59 | . . 24 . 35 Shots 3 | . . 1 . 2 Rammed . | . . . . . Targets Rammed . | . . . . . Kicked . | . . . . . Crushed . | . . . . . Highest Temperature 288 | . 70 288 4 175 Average Temperature 74 | . 19 105 2 49 Received Heat Transfer 321 | . 168 105 . 48 Effects 2 | . . 2 . . Interference 2 | . . 2 . . Siege Activations . | . . . . . Robots Corrupted . | . . . . . Combat Hostiles . | . . . . . Parts Fried . | . . . . . Impact Corruptions . | . . . . . Robots Melted . | . . . . . Combat Hostiles . | . . . . . Parts Melted . | . . . . . Heat Transferred 709 | . 100 609 . . Parts Sabotaged . | . . . . . Parts Stolen . | . . . . . Parts Stripped . | . . . . . Power Chain Reactions . | . . . . . Missiles Intercepted . | . . . . . Alert | -11 -10 -10 -10 -9 ------- Run | Scr Mat Min Exi Min Peak Influence 340 | . 340 332 . 158 Initial 132 | . . 132 . . Average 170 | . 236 176 . 63 Maximum Alert Level 1 | . 1 1 . . Low Security (%) 57 | . 19 62 . 100 Level 1 42 | . 80 37 . . Level 2 . | . . . . . Level 3 . | . . . . . Level 4 . | . . . . . Level 5 . | . . . . . High Security . | . . . . . Max Security . | . . . . . Squads Dispatched 6 | . 5 1 . . Investigation 3 | . 2 1 . . Extermination . | . . . . . Reinforcement 3 | . 3 . . . Assault . | . . . . . Garrison . | . . . . . Intercept . | . . . . . Searches Triggered . | . . . . . Construction Impeded . | . . . . . Haulers Reinforced . | . . . . . Active Scanning Responses . | . . . . . Cargo Convoy Interrupts . | . . . . . Stealth | -11 -10 -10 -10 -9 --------- Run | Scr Mat Min Exi Min Distress Signals 2 | . 2 . . . Communications Jammed . | . . . . . Distress Signals . | . . . . . Times Spotted 51 | . 33 12 . 6 Peak Tracking Total 5 | . 5 3 . 3 Tactical Retreats 2 | . 1 1 . . Traps | -11 -10 -10 -10 -9 ------- Run | Scr Mat Min Exi Min Traps Triggered 2 | . 2 . . . Indirectly . | . . . . . Trap Hack Attempts . | . . . . . Triggered . | . . . . . Disarmed . | . . . . . Reprogrammed . | . . . . . Reused . | . . . . . Traps Extracted . | . . . . . Installed . | . . . . . Triggered . | . . . . . Most Traps Carried 2 | . . 2 2 2 Machines | -11 -10 -10 -10 -9 ---------- Run | Scr Mat Min Exi Min Machines Disabled . | . . . . . Max in Single Turn . | . . . . . Machines Sabotaged . | . . . . . Garrisons Compromised . | . . . . . Overloaded Fab Kills . | . . . . . Hacking | -11 -10 -10 -10 -9 --------- Run | Scr Mat Min Exi Min Machines Accessed 4 | . 2 2 . . Terminals 2 | . 1 1 . . Fabricators . | . . . . . Repair Stations . | . . . . . Recycling Units 1 | . 1 . . . Scanalyzers . | . . . . . Garrison Access . | . . . . . Total Hacks 7 | . 4 3 . . Successful 2 | . 1 1 . . Failed 5 | . 3 2 . . Catastrophic 1 | . 1 . . . Database Lockouts . | . . . . . Manual 4 | . 4 . . . Terminals 5 | . 3 2 . . Fabricators . | . . . . . Repair Stations . | . . . . . Recycling Units 1 | . 1 . . . Scanalyzers . | . . . . . Garrison Access . | . . . . . Terminal Hacks 1 | . . 1 . . Open Door 1 | . . 1 . . Fabricator Hacks . | . . . . . Repair Station Hacks . | . . . . . Recycling Unit Hacks . | . . . . . Scanalyzer . | . . . . . Garrison Access Hacks . | . . . . . Unauthorized Hacks 1 | . 1 . . . Terminals . | . . . . . Fabricators . | . . . . . Repair Stations . | . . . . . Recycling Units 1 | . 1 . . . Tunnel 1 | . 1 . . . Scanalyzers . | . . . . . Garrison Access . | . . . . . Data Cores Recovered . | . . . . . Used . | . . . . . Hacking Detections 2 | . 1 1 . . Full Trace Events . | . . . . . Feedback Events . | . . . . . Feedback Blocked . | . . . . . Robot Schematics Acquired . | . . . . . Robots Built . | . . . . . Authchips . | . . . . . Time . | . . . . . Total Robot Build Rating . | . . . . . Part Schematics Acquired . | . . . . . Parts Built . | . . . . . Authchips . | . . . . . Time . | . . . . . Total Part Build Rating . | . . . . . Parts Repaired . | . . . . . Time . | . . . . . Parts Recycled . | . . . . . Recycled Matter . | . . . . . Retrieved Matter . | . . . . . Retrieved Components . | . . . . . Parts Scanalyzed . | . . . . . Part Schematics Acquired . | . . . . . Parts Damaged . | . . . . . Bothacking | -11 -10 -10 -10 -9 ------------ Run | Scr Mat Min Exi Min Used RIF Installer . | . . . . . Robots Hacked . | . . . . . Non-combat . | . . . . . Combat . | . . . . . Robot Hacks Applied . | . . . . . Relay Couplers Released . | . . . . . Fabnet Peak Effective % . | . . . . . Robots Rewired . | . . . . . Allies Hacked . | . . . . . Hacks Repelled . | . . . . . Allies | -11 -10 -10 -10 -9 -------- Run | Scr Mat Min Exi Min Total Allies . | . . . . . Largest Group . | . . . . . Highest-Rated Group . | . . . . . Highest-Rated Ally . | . . . . . Total Orders . | . . . . . Ally Attacks . | . . . . . Total Damage . | . . . . . Kills . | . . . . . Allies Corrupted . | . . . . . Allies Melted . | . . . . . Intel | -11 -10 -10 -10 -9 ------- Run | Scr Mat Min Exi Min Robot Analysis Total . | . . . . . Derelict Logs Recovered 1 | . . 1 . . Drone Launches . | . . . . . Drone Recoveries . | . . . . . Exploration | -11 -10 -10 -10 -9 ------------- Run | Scr Mat Min Exi Min Turns Passed 3110 | . 777 1257 521 555 Spaces Moved 1296 | 1 348 509 217 221 Core . | . . . . . Treads 908 | . . 470 217 221 Legs 388 | 1 348 39 . . Wheels . | . . . . . Hover . | . . . . . Flight . | . . . . . Fastest Speed 120 | 120 120 160 240 240 Average Speed 216 | 120 171 227 240 240 Slowest Speed 240 | 120 190 240 240 240 Overloaded Moves . | . . . . . Propulsion Burnouts . | . . . . . Robots Hopped . | . . . . . Cave-ins Triggered . | . . . . . Exploration Rate (%) 51 | 2 58 89 59 51 Regions Visited 4 Branch Regions 3 Pre-discovered Areas 1 | . 1 . . . Known Exits Taken . | . . . . . Unknown Exits Taken 4 | 1 1 1 1 . Scrap Searched 2 | . . . . 2 Spaces Dug 3 | . . 3 . . Terrain Destroyed 87 | . . 16 . 71 Melee . | . . . . . Projectile 3 | . . 3 . . AOE 84 | . . 13 . 71 Terrain Rammed . | . . . . . Walls Destroyed . | . . . . . Machines Disabled . | . . . . . Actions | -11 -10 -10 -10 -9 --------- Run | Scr Mat Min Exi Min Total 1468 | . 448 563 219 238 Wait 36 | . 21 10 . 5 Move 1292 | . 347 508 216 221 Hop . | . . . . . Pick Up 10 | . 4 4 1 1 Fast Attach 11 | . 6 4 . 1 Attach . | . . . . . Detach . | . . . . . Swap 15 | . 10 4 1 . Drop 17 | . 8 7 1 1 Fire 87 | . 52 26 . 9 Melee . | . . . . . Ram . | . . . . . Kick . | . . . . . Crush . | . . . . . Escape Stasis . | . . . . . Rewire . | . . . . . Trap . | . . . . . Miscellaneous . | . . . . . Route ------- -11/Scrapyard -10/Materials (discovered 2 exits: [*Mat] / *Min) -10/Mines (discovered 3 exits: [*Mat x2] / [*Exi]) -10/Exiles -9/Mines History --------- Turn | Location | Event 1 | -11/Scrapyard | Discovered new exit (range 0) 1 | -11/Scrapyard | Entered Materials 124 | -10/Materials | Destroyed 9 combat bots 386 | -10/Materials | Discovered new exit (range 6) 413 | -10/Materials | Build established: Scavenger-Mutant 731 | -10/Materials | Discovered new exit (range 12) 778 | -10/Materials | Entered Mines 794 | -10/Mines | Core integrity fell below 50% 983 | -10/Mines | Met a Derelict shopkeep closing up shop 1175 | -10/Mines | Discovered new exit (range 15) 1181 | -10/Mines | Build established: Mutant 1416 | -10/Mines | Learned 2 Materials zone layouts 1457 | -10/Mines | Discovered new exit (range 8) 1467 | -10/Mines | Core integrity fell below 20% 1655 | -10/Mines | Found a hidden stash of uninstalled traps 2023 | -10/Mines | Deemed a non-threat by the Exiles lab entrance 2025 | -10/Mines | Discovered new exit (range 5) 2035 | -10/Mines | Entered Exiles 2035 | -10/Exiles | Found Exiles lab abandoned 2527 | -10/Exiles | Discovered new exit (range 10) 2556 | -10/Exiles | Entered Mines 2888 | -9/Mines | Assembled infested the area 3111 | -9/Mines | Destroyed self with Grenade Launcher Last Messages --------------- 02766_ U-05 Engineer lays Concrete. 02770_ K-01 Serf collects debris. 02771_ U-05 Engineer lays Concrete. 02774_ U-05 Engineer builds a Wall. 02784_ Searching scrap... 02784_ Found Beam Rifle. 02784_ Found Imp. Ion Engine. 02784_ Found Hcp. Battery. 02784_ Found 24 Matter. 02785_ Acquired 24 matter. 02788_ System corrupted: IFF burst signal emitted. 02789_ Dropped Lgt. Deuterium Engine. 02789_ Acquired Imp. Ion Engine. 02818_ System corrupted: Matter fused (-5). 02888_ ALERT: Infestation in the mines, dispatching Demolisher response squad. 02913_ K-01 Serf cleans the Plasma Injector. 02969_ System corrupted: Heat flow error (+189). 03006_ System corrupted: Substantial component data lost. 03109_ G-34 Mercenary destroyed. Map ----- +----------------------------------------------------+ | ?????????????????????????????????????????????????? | | ?????????????????????????????????????????????????? | | ?????????????????????????????????????????????????? | | ?????????????????????????????????????????????????? | | ?????????????????????????????????????????????????? | | ?????????????????????????????????????????????????? | | ?????????????????????????????????????????????????? | | ???????????????????????????????????# ????????????? | | ???????????????????????????????????? ???????????? | | ???????????????????????????????????? ????????#### | | ?????????????????????????????? ?????? ????????# | | ????????????????????????????? ????? ##??????# ## | | ????????????????????????????# ?????# #?????# #? | | ???????????????????###??????# ???## ?????# #? | | ???????????????????? ??????# ?## ?????# #? | | ???????????????????? ??????? ## #?????# #? | | ???????????????????? ?????? ####??# #? | | ???????????????????? ????????? # #### #? | | ??????????????????? #???????????# # #? | | ??????????????????? #??????????# # #? | | ???????????????????? ##????????# = #? | | ????????????????????? ###??????# ##? | | ?????????????????????? ##????## # #?? | | ???????????????????????# #?????## #####?? | | ????????????????????????# #?????## ##?????? | | ???????????????????????##@ #?????# ##??????? | | ??????????????????????## #??# * #???????? | | ??????????????????????# ## ######### | | ??????????????????????# %= # [ | | ??????????????????????## ! gg ########!#### | | ???????????????????????## #??????# #??? | | ????????????????????????##### #??????# #??? | | ????????????????????????????? ##?????## #??? | | ??????????????????????????????# #????## ##?? | | ???????????????????????????????## ###?#### ##? | | ????????????????????????????????# ### ## | | ????????????????????????????????# # | | ????????????????????????????##### | | ????????????????????????????# | | ????????????????????????????# | | ????????????????????????##### ######## # | | ????????????????????????# #??????## ## # | | ????????????????????????# #####???????## #### # | | ??????????????????????### ########?????####??# # | | ??????????????????????# #??????????## # | | ??????????????????????# """ """ #????????### ## | | ??????????????????????# """ """ #????????# ##? | | ??????????????????????# """ """ #???????# ##?? | | ??????????????????????# ?????????# ???? | | ??????????????????????##########?????????## #???? | +----------------------------------------------------+ Best States ------------- Heat Dissipation 25 Energy Generation 14 Energy Capacity 265 Matter Stores 300 Matter Capacity 300 Sight Range 16 Terrain Scan Density 10 Armor Coverage 150 Resistance: KI 20 Evasion (%) 55 Targeting Accuracy 5 Recoil Reduction 2 Item Schematics ----------------- None Robot Schematics ------------------ None Fabricated ------------ Nothing Alien Tech Used ----------------- None Achievements -------------- None Challenges ------------ None Game ------ Seed TrackerHardlightDrive Manual? 0 Play Time 00:11:56 Cumulative 313.2 hours Start 2022.04.18 @ 23:00:00 End 2022.04.18 @ 23:11:35 Sessions 1 Manual Loads 0 Difficulty Rogue Special Mode None Game No. 349 Rogue 349 Adventurer 0 Explorer 0 Win Type - Total 28 Types 17/3/2/1/2/0/3/0/0 Lore% 85 Gallery% 83 Achievement% 80 Wizard Run 0 Options --------- ASCII 0 Keyboard 0 Movement Arrows Keybinds 0 Fullscreen 2 Font 18/SmallcapsGlow Map View 76x50 Tactical HUD 1 Map Filters NONE Filters NONE Steam 1 RUN: 942a7c19-283b-4054-b328-87b61b2a4109